[Event "January 2 Early 2024"]
[Site "https://www.chess.com"]
[Date "2024.01.02"]
[Round "4"]
[White "Atanasov, Anthony"]
[Black "Mohammed, Zozek Salah Mohammed"]
[Result "0-1"]
[Board "132"]
[TimeControl "180+1"]
[WhiteFideId "2623897"]
[BlackFideId "4803361"]
[WhiteElo "2657"]
[BlackElo "2391"]
[WhiteTeam "CAN"]
[BlackTeam "IRQ"]
[WhiteClock "0:00:03"]
[BlackClock "0:00:11"]

1. e4 {[%clk 0:03:00]}  e6 {[%clk 0:02:59]} 2. d4 {[%clk 0:02:56]}  d5 {[%clk 0:02:59]} 3. exd5 {[%clk 0:02:56]}  exd5 {[%clk 0:02:59]} 4. h3 {[%clk 0:02:57]}  Nf6 {[%clk 0:02:59]} 5. Bd3 {[%clk 0:02:58]}  c5 {[%clk 0:02:58]} 6. Nf3 {[%clk 0:02:59]}  c4 {[%clk 0:02:58]} 7. Be2 {[%clk 0:03:00]}  Bd6 {[%clk 0:02:58]} 8. O-O {[%clk 0:03:01]}  O-O {[%clk 0:02:58]} 9. c3 {[%clk 0:03:01]}  h6 {[%clk 0:02:58]} 10. Re1 {[%clk 0:03:02]}  Bf5 {[%clk 0:02:57]} 11. Ne5 {[%clk 0:03:03]}  Bxe5 {[%clk 0:02:54]} 12. dxe5 {[%clk 0:03:04]}  Ne4 {[%clk 0:02:54]} 13. Bf4 {[%clk 0:03:04]}  Nc6 {[%clk 0:02:50]} 14. Nd2 {[%clk 0:03:03]}  Re8 {[%clk 0:02:42]} 15. Nxe4 {[%clk 0:03:02]}  Bxe4 {[%clk 0:02:43]} 16. Bxc4 {[%clk 0:03:00]}  Bxg2 {[%clk 0:02:41]} 17. Kxg2 {[%clk 0:02:51]}  dxc4 {[%clk 0:02:39]} 18. Qxd8 {[%clk 0:02:52]}  Raxd8 {[%clk 0:02:39]} 19. Rad1 {[%clk 0:02:52]}  Rxd1 {[%clk 0:02:35]} 20. Rxd1 {[%clk 0:02:53]}  Nxe5 {[%clk 0:02:35]} 21. Bxe5 {[%clk 0:02:53]}  Rxe5 {[%clk 0:02:35]} 22. Rd8+ {[%clk 0:02:52]}  Kh7 {[%clk 0:02:35]} 23. Rd7 {[%clk 0:02:53]}  Rb5 {[%clk 0:02:35]} 24. Rxf7 {[%clk 0:02:47]}  Rxb2 {[%clk 0:02:34]} 25. Rc7 {[%clk 0:02:45]}  a6 {[%clk 0:02:30]} 26. a4 {[%clk 0:02:41]}  b5 {[%clk 0:02:26]} 27. Rc6 {[%clk 0:02:33]}  Ra2 {[%clk 0:01:59]} 28. axb5 {[%clk 0:02:20]}  axb5 {[%clk 0:01:58]} 29. Rb6 {[%clk 0:02:17]}  Rb2 {[%clk 0:01:58]} 30. h4 {[%clk 0:02:14]}  Rb3 {[%clk 0:01:53]} 31. h5 {[%clk 0:02:11]}  Kg8 {[%clk 0:01:52]} 32. Rb7 {[%clk 0:02:10]}  Kf8 {[%clk 0:01:52]} 33. f3 {[%clk 0:02:10]}  Rxc3 {[%clk 0:01:49]} 34. Rxb5 {[%clk 0:02:10]}  Kf7 {[%clk 0:01:45]} 35. Rc5 {[%clk 0:02:05]}  Kf6 {[%clk 0:01:41]} 36. Kg3 {[%clk 0:02:04]}  Rc1 {[%clk 0:01:39]} 37. Kf4 {[%clk 0:02:04]}  c3 {[%clk 0:01:39]} 38. Rc6+ {[%clk 0:02:03]}  Kf7 {[%clk 0:01:39]} 39. Rc7+ {[%clk 0:02:02]}  Kg8 {[%clk 0:01:38]} 40. Rc8+ {[%clk 0:02:02]}  Kh7 {[%clk 0:01:37]} 41. Rc5 {[%clk 0:02:01]}  c2 {[%clk 0:01:37]} 42. Rc8 {[%clk 0:01:44]}  Rh1 {[%clk 0:01:08]} 43. Rxc2 {[%clk 0:01:45]}  Rxh5 {[%clk 0:01:09]} 44. Kg3 {[%clk 0:01:45]}  Ra5 {[%clk 0:01:07]} 45. Rc7 {[%clk 0:01:40]}  h5 {[%clk 0:01:06]} 46. Rb7 {[%clk 0:01:33]}  Kh6 {[%clk 0:00:56]} 47. Rb6+ {[%clk 0:01:30]}  g6 {[%clk 0:00:53]} 48. Rc6 {[%clk 0:01:29]}  Rf5 {[%clk 0:00:52]} 49. Rc4 {[%clk 0:01:22]}  Kg5 {[%clk 0:00:51]} 50. f4+ {[%clk 0:01:22]}  Kh6 {[%clk 0:00:49]} 51. Ra4 {[%clk 0:01:21]}  Rb5 {[%clk 0:00:48]} 52. Rc4 {[%clk 0:01:17]}  Rb1 {[%clk 0:00:48]} 53. Ra4 {[%clk 0:01:11]}  Rg1+ {[%clk 0:00:48]} 54. Kh4 {[%clk 0:01:08]}  Rg4+ {[%clk 0:00:47]} 55. Kh3 {[%clk 0:01:08]}  Kg7 {[%clk 0:00:47]} 56. Rb4 {[%clk 0:00:04]}  Kf6 {[%clk 0:00:47]} 57. Rb6+ {[%clk 0:00:05]}  Kf5 {[%clk 0:00:47]} 58. Rb5+ {[%clk 0:00:05]}  Kxf4 {[%clk 0:00:44]} 59. Rb4+ {[%clk 0:00:05]}  Kg5 {[%clk 0:00:44]} 60. Rb5+ {[%clk 0:00:02]}  Kh6 {[%clk 0:00:43]} 61. Rb6 {[%clk 0:00:02]}  Ra4 {[%clk 0:00:42]} 62. Kg3 {[%clk 0:00:02]}  Ra3+ {[%clk 0:00:42]} 63. Kh4 {[%clk 0:00:01]}  Ra4+ {[%clk 0:00:41]} 64. Kh3 {[%clk 0:00:01]}  Ra5 {[%clk 0:00:42]} 65. Kg3 {[%clk 0:00:01]}  Kg5 {[%clk 0:00:42]} 66. Kh3 {[%clk 0:00:01]}  Ra3+ {[%clk 0:00:41]} 67. Kh2 {[%clk 0:00:02]}  h4 {[%clk 0:00:39]} 68. Kg2 {[%clk 0:00:02]}  Kh5 {[%clk 0:00:38]} 69. Rb5+ {[%clk 0:00:02]}  g5 {[%clk 0:00:38]} 70. Kh2 {[%clk 0:00:02]}  Ra4 {[%clk 0:00:37]} 71. Kh3 {[%clk 0:00:02]}  Ra3+ {[%clk 0:00:36]} 72. Kh2 {[%clk 0:00:03]}  Rf3 {[%clk 0:00:33]} 73. Kg2 {[%clk 0:00:03]}  Rf6 {[%clk 0:00:30]} 74. Kh3 {[%clk 0:00:03]}  Kg6 {[%clk 0:00:28]} 75. Kg4 {[%clk 0:00:03]}  Rf4+ {[%clk 0:00:27]} 76. Kh3 {[%clk 0:00:04]}  Ra4 {[%clk 0:00:27]} 77. Rb6+ {[%clk 0:00:03]}  Kh5 {[%clk 0:00:26]} 78. Rb5 {[%clk 0:00:04]}  Ra3+ {[%clk 0:00:26]} 79. Kg2 {[%clk 0:00:03]}  h3+ {[%clk 0:00:25]} 80. Kh2 {[%clk 0:00:03]}  Kh4 {[%clk 0:00:24]} 81. Rb8 {[%clk 0:00:03]}  Ra2+ {[%clk 0:00:22]} 82. Kh1 {[%clk 0:00:03]}  g4 {[%clk 0:00:23]} 83. Rh8+ {[%clk 0:00:01]}  Kg3 {[%clk 0:00:22]} 84. Ra8 {[%clk 0:00:01]}  Rh2+ {[%clk 0:00:21]} 85. Kg1 {[%clk 0:00:02]}  Rg2+ {[%clk 0:00:21]} 86. Kh1 {[%clk 0:00:02]}  Rb2 {[%clk 0:00:20]} 87. Ra3+ {[%clk 0:00:02]}  Kh4 {[%clk 0:00:20]} 88. Ra1 {[%clk 0:00:02]}  Rb4 {[%clk 0:00:16]} 89. Kh2 {[%clk 0:00:02]}  g3+ {[%clk 0:00:16]} 90. Kg1 {[%clk 0:00:02]}  Kg4 {[%clk 0:00:15]} 91. Rc1 {[%clk 0:00:02]}  Rf4 {[%clk 0:00:16]} 92. Ra1 {[%clk 0:00:02]}  g2 {[%clk 0:00:15]} 93. Kh2 {[%clk 0:00:02]}  Rf1 {[%clk 0:00:14]} 94. Ra4+ {[%clk 0:00:02]}  Kf5 {[%clk 0:00:13]} 95. Ra5+ {[%clk 0:00:02]}  Ke6 {[%clk 0:00:13]} 96. Ra6+ {[%clk 0:00:02]}  Kd7 {[%clk 0:00:14]} 97. Ra7+ {[%clk 0:00:02]}  Kc8 {[%clk 0:00:13]} 98. Ra8+ {[%clk 0:00:02]}  Kb7 {[%clk 0:00:13]} 99. Rg8 {[%clk 0:00:01]}  Rh1+ {[%clk 0:00:11]} 100. Kg3 {[%clk 0:00:02]}  g1=Q+ {[%clk 0:00:11]} 101. Kh4 {[%clk 0:00:02]}  Qxg8 {[%clk 0:00:10]} 102. Kh5 {[%clk 0:00:03]}  Rg1 {[%clk 0:00:10]} 103. Kh6 {[%clk 0:00:03]}  h2 {[%clk 0:00:11]} 104. Kh5 {[%clk 0:00:03]}  h1=Q# {[%clk 0:00:11]} 0-1

[Event "January 2 Early 2024"]
[Site "https://www.chess.com"]
[Date "2024.01.02"]
[Round "4"]
[White "Jakubowski, Krzysztof"]
[Black "Samaganova, Aleksandra"]
[Result "1-0"]
[Board "133"]
[TimeControl "180+1"]
[WhiteFideId "1112848"]
[BlackFideId "13800221"]
[WhiteElo "2650"]
[BlackElo "2390"]
[WhiteTeam "POL"]
[BlackTeam "KGZ"]
[WhiteClock "0:01:21"]
[BlackClock "0:00:03"]

1. e4 {[%clk 0:03:00]}  c5 {[%clk 0:02:52]} 2. Nf3 {[%clk 0:02:59]}  e6 {[%clk 0:02:50]} 3. d4 {[%clk 0:02:59]}  cxd4 {[%clk 0:02:42]} 4. Nxd4 {[%clk 0:03:00]}  a6 {[%clk 0:02:42]} 5. Nc3 {[%clk 0:02:55]}  Qc7 {[%clk 0:02:35]} 6. Bd3 {[%clk 0:02:53]}  Nf6 {[%clk 0:02:34]} 7. O-O {[%clk 0:02:36]}  Nc6 {[%clk 0:02:33]} 8. Nxc6 {[%clk 0:02:31]}  bxc6 {[%clk 0:02:29]} 9. f4 {[%clk 0:02:20]}  d5 {[%clk 0:02:28]} 10. e5 {[%clk 0:02:14]}  Nd7 {[%clk 0:02:28]} 11. Na4 {[%clk 0:02:13]}  Be7 {[%clk 0:00:25]} 12. b3 {[%clk 0:02:01]}  O-O {[%clk 0:00:23]} 13. c4 {[%clk 0:01:39]}  f5 {[%clk 0:00:14]} 14. Be3 {[%clk 0:01:35]}  Rb8 {[%clk 0:00:12]} 15. Rc1 {[%clk 0:01:34]}  Qd8 {[%clk 0:00:06]} 16. Qe2 {[%clk 0:01:32]}  c5 {[%clk 0:00:04]} 17. cxd5 {[%clk 0:01:30]}  exd5 {[%clk 0:00:05]} 18. Nxc5 {[%clk 0:01:29]}  Nxc5 {[%clk 0:00:04]} 19. Bxc5 {[%clk 0:01:28]}  Bxc5+ {[%clk 0:00:05]} 20. Rxc5 {[%clk 0:01:28]}  Qb6 {[%clk 0:00:03]} 21. Qf2 {[%clk 0:01:28]}  Be6 {[%clk 0:00:03]} 22. Rfc1 {[%clk 0:01:27]}  h6 {[%clk 0:00:03]} 23. Rc6 {[%clk 0:01:27]}  Qxf2+ {[%clk 0:00:02]} 24. Kxf2 {[%clk 0:01:28]}  Bf7 {[%clk 0:00:02]} 25. Rxa6 {[%clk 0:01:27]}  Rfc8 {[%clk 0:00:02]} 26. Rac6 {[%clk 0:01:25]}  Rxc6 {[%clk 0:00:02]} 27. Rxc6 {[%clk 0:01:26]}  Ra8 {[%clk 0:00:02]} 28. a4 {[%clk 0:01:25]}  g6 {[%clk 0:00:03]} 29. Bb5 {[%clk 0:01:22]}  Kg7 {[%clk 0:00:03]} 30. Rc7 {[%clk 0:01:21]}  Kf8 {[%clk 0:00:03]} 31. b4 {[%clk 0:01:21]}  Rb8 {[%clk 0:00:02]} 32. Ke3 {[%clk 0:01:21]}  Rd8 {[%clk 0:00:02]} 33. Kd4 {[%clk 0:01:21]}  g5 {[%clk 0:00:02]} 34. g3 {[%clk 0:01:20]}  gxf4 {[%clk 0:00:02]} 35. gxf4 {[%clk 0:01:21]}  Be6 {[%clk 0:00:02]} 36. Rc6 {[%clk 0:01:20]}  Bd7 {[%clk 0:00:03]} 37. Rd6 {[%clk 0:01:19]}  Ke7 {[%clk 0:00:02]} 38. Rxd7+ {[%clk 0:01:20]}  Rxd7 {[%clk 0:00:03]} 39. Bxd7 {[%clk 0:01:20]}  Kxd7 {[%clk 0:00:03]} 40. Kxd5 {[%clk 0:01:21]} 1-0

[Event "January 2 Early 2024"]
[Site "https://www.chess.com"]
[Date "2024.01.02"]
[Round "4"]
[White "Povshednyi, Ivan"]
[Black "Travkina, Anastasia"]
[Result "1/2-1/2"]
[Board "139"]
[TimeControl "180+1"]
[WhiteFideId "14190907"]
[BlackFideId "24129151"]
[WhiteElo "2612"]
[BlackElo "2377"]
[WhiteTeam "UKR"]
[BlackTeam "RUS"]
[WhiteClock "0:00:19"]
[BlackClock "0:01:31"]

1. Nf3 {[%clk 0:03:00]}  Nf6 {[%clk 0:02:59]} 2. g3 {[%clk 0:03:00]}  b5 {[%clk 0:02:57]} 3. d3 {[%clk 0:02:59]}  Bb7 {[%clk 0:02:56]} 4. e4 {[%clk 0:02:59]}  d6 {[%clk 0:02:52]} 5. Bg2 {[%clk 0:02:59]}  g6 {[%clk 0:02:52]} 6. O-O {[%clk 0:02:59]}  Bg7 {[%clk 0:02:52]} 7. Re1 {[%clk 0:02:58]}  Nbd7 {[%clk 0:02:50]} 8. c3 {[%clk 0:02:59]}  c5 {[%clk 0:02:50]} 9. Nbd2 {[%clk 0:02:59]}  Qc7 {[%clk 0:02:46]} 10. d4 {[%clk 0:02:59]}  O-O {[%clk 0:02:37]} 11. a3 {[%clk 0:02:50]}  a5 {[%clk 0:02:33]} 12. e5 {[%clk 0:02:43]}  dxe5 {[%clk 0:02:30]} 13. dxe5 {[%clk 0:02:44]}  Nd5 {[%clk 0:02:21]} 14. e6 {[%clk 0:02:43]}  fxe6 {[%clk 0:02:15]} 15. Ng5 {[%clk 0:02:26]}  Qb6 {[%clk 0:01:42]} 16. Ndf3 {[%clk 0:01:13]}  Nc7 {[%clk 0:01:36]} 17. Qxd7 {[%clk 0:00:53]}  Rad8 {[%clk 0:01:30]} 18. Qxe7 {[%clk 0:00:52]}  Rde8 {[%clk 0:01:30]} 19. Qd7 {[%clk 0:00:47]}  Rd8 {[%clk 0:01:30]} 20. Qe7 {[%clk 0:00:22]}  Rde8 {[%clk 0:01:30]} 21. Qd7 {[%clk 0:00:19]}  Rd8 {[%clk 0:01:31]} 22. Qe7 {[%clk 0:00:19]} 1/2-1/2

[Event "January 2 Early 2024"]
[Site "https://www.chess.com"]
[Date "2024.01.02"]
[Round "4"]
[White "Fernandez Garcia, Gumersindo"]
[Black "Ambartsumova, Karina"]
[Result "1/2-1/2"]
[Board "141"]
[TimeControl "180+1"]
[WhiteFideId "24516740"]
[BlackFideId "4166299"]
[WhiteElo "2371"]
[BlackElo "2591"]
[WhiteTeam "ESP"]
[BlackTeam "RUS"]
[WhiteClock "0:00:19"]
[BlackClock "0:00:03"]

1. e4 {[%clk 0:03:00]}  e5 {[%clk 0:02:59]} 2. Nf3 {[%clk 0:03:00]}  Nc6 {[%clk 0:02:59]} 3. d4 {[%clk 0:02:59]}  exd4 {[%clk 0:03:00]} 4. Bc4 {[%clk 0:02:59]}  Nf6 {[%clk 0:02:59]} 5. O-O {[%clk 0:02:59]}  Nxe4 {[%clk 0:02:59]} 6. Re1 {[%clk 0:03:00]}  d5 {[%clk 0:02:59]} 7. Bxd5 {[%clk 0:03:00]}  Qxd5 {[%clk 0:03:00]} 8. Nc3 {[%clk 0:03:01]}  Qa5 {[%clk 0:02:59]} 9. Nxe4 {[%clk 0:03:01]}  Be7 {[%clk 0:02:59]} 10. Bg5 {[%clk 0:02:59]}  Be6 {[%clk 0:02:57]} 11. Bxe7 {[%clk 0:02:55]}  Nxe7 {[%clk 0:02:56]} 12. Neg5 {[%clk 0:02:41]}  O-O-O {[%clk 0:02:56]} 13. Nxe6 {[%clk 0:02:41]}  fxe6 {[%clk 0:02:57]} 14. Rxe6 {[%clk 0:02:41]}  Nc6 {[%clk 0:02:54]} 15. Qe2 {[%clk 0:02:30]}  h6 {[%clk 0:02:46]} 16. a3 {[%clk 0:02:30]}  Qd5 {[%clk 0:02:42]} 17. Rd1 {[%clk 0:02:24]}  Rhf8 {[%clk 0:02:42]} 18. Re4 {[%clk 0:02:14]}  Qa2 {[%clk 0:02:30]} 19. Qb5 {[%clk 0:02:00]}  a6 {[%clk 0:02:27]} 20. Qb3 {[%clk 0:01:54]}  Qxb3 {[%clk 0:02:25]} 21. cxb3 {[%clk 0:01:55]}  Rd5 {[%clk 0:02:08]} 22. b4 {[%clk 0:01:33]}  Rfd8 {[%clk 0:01:52]} 23. Rd3 {[%clk 0:01:31]}  b6 {[%clk 0:01:32]} 24. g4 {[%clk 0:01:23]}  R8d6 {[%clk 0:01:30]} 25. h4 {[%clk 0:01:22]}  Kd7 {[%clk 0:01:21]} 26. Kg2 {[%clk 0:01:22]}  Re6 {[%clk 0:01:03]} 27. Rxe6 {[%clk 0:01:18]}  Kxe6 {[%clk 0:01:04]} 28. Kg3 {[%clk 0:01:18]}  g5 {[%clk 0:01:04]} 29. h5 {[%clk 0:01:12]}  Kd6 {[%clk 0:00:58]} 30. Nd2 {[%clk 0:01:11]}  Ne5 {[%clk 0:00:57]} 31. Ne4+ {[%clk 0:01:06]}  Ke6 {[%clk 0:00:57]} 32. Rd1 {[%clk 0:01:01]}  d3 {[%clk 0:00:56]} 33. Nd2 {[%clk 0:01:00]}  Rd4 {[%clk 0:00:55]} 34. f3 {[%clk 0:01:01]}  c5 {[%clk 0:00:53]} 35. bxc5 {[%clk 0:01:00]}  bxc5 {[%clk 0:00:54]} 36. Kf2 {[%clk 0:00:55]}  c4 {[%clk 0:00:51]} 37. Ke3 {[%clk 0:00:56]}  Rf4 {[%clk 0:00:51]} 38. Rc1 {[%clk 0:00:54]}  Kd5 {[%clk 0:00:52]} 39. Rc3 {[%clk 0:00:49]}  Nxf3 {[%clk 0:00:26]} 40. Nxf3 {[%clk 0:00:47]}  Re4+ {[%clk 0:00:26]} 41. Kd2 {[%clk 0:00:41]}  Re2+ {[%clk 0:00:20]} 42. Kd1 {[%clk 0:00:42]}  Rxb2 {[%clk 0:00:20]} 43. Nd2 {[%clk 0:00:42]}  Ra2 {[%clk 0:00:12]} 44. Nxc4 {[%clk 0:00:27]}  Kd4 {[%clk 0:00:11]} 45. Rc1 {[%clk 0:00:25]}  Rg2 {[%clk 0:00:06]} 46. Nd6 {[%clk 0:00:17]}  Rg1+ {[%clk 0:00:01]} 47. Kd2 {[%clk 0:00:18]}  Rg2+ {[%clk 0:00:02]} 48. Kd1 {[%clk 0:00:18]}  Rg1+ {[%clk 0:00:02]} 49. Kd2 {[%clk 0:00:19]}  Rg2+ {[%clk 0:00:03]} 50. Kd1 {[%clk 0:00:19]} 1/2-1/2

[Event "January 2 Early 2024"]
[Site "https://www.chess.com"]
[Date "2024.01.02"]
[Round "4"]
[White "Pavlidou, Ekaterini"]
[Black "Ezat, Mohamed"]
[Result "1-0"]
[Board "147"]
[TimeControl "180+1"]
[WhiteFideId "4213262"]
[BlackFideId "10600906"]
[WhiteElo "2343"]
[BlackElo "2545"]
[WhiteTeam "GRE"]
[BlackTeam "EGY"]
[WhiteClock "0:00:38"]
[BlackClock "0:00:00"]

1. d4 {[%clk 0:03:00]}  Nf6 {[%clk 0:02:57]} 2. c4 {[%clk 0:03:00]}  d6 {[%clk 0:02:57]} 3. Nc3 {[%clk 0:02:59]}  g6 {[%clk 0:02:56]} 4. e4 {[%clk 0:02:59]}  Bg7 {[%clk 0:02:57]} 5. Bd3 {[%clk 0:02:58]}  O-O {[%clk 0:02:56]} 6. Nge2 {[%clk 0:02:57]}  c5 {[%clk 0:02:56]} 7. d5 {[%clk 0:02:58]}  e6 {[%clk 0:02:36]} 8. h3 {[%clk 0:02:58]}  exd5 {[%clk 0:02:36]} 9. exd5 {[%clk 0:02:58]}  Re8 {[%clk 0:02:35]} 10. Qc2 {[%clk 0:02:57]}  Nbd7 {[%clk 0:02:33]} 11. f4 {[%clk 0:02:57]}  a6 {[%clk 0:02:27]} 12. a4 {[%clk 0:02:56]}  Nh5 {[%clk 0:02:23]} 13. O-O {[%clk 0:02:55]}  f5 {[%clk 0:02:21]} 14. Bd2 {[%clk 0:02:54]}  Ndf6 {[%clk 0:02:14]} 15. Rae1 {[%clk 0:02:47]}  Bd7 {[%clk 0:02:12]} 16. g3 {[%clk 0:02:12]}  Qc7 {[%clk 0:02:01]} 17. Kh2 {[%clk 0:02:11]}  Re7 {[%clk 0:02:01]} 18. Ng1 {[%clk 0:02:10]}  Rae8 {[%clk 0:02:00]} 19. Qb1 {[%clk 0:02:06]}  Qd8 {[%clk 0:01:58]} 20. Rxe7 {[%clk 0:02:04]}  Rxe7 {[%clk 0:01:57]} 21. Nf3 {[%clk 0:02:00]}  h6 {[%clk 0:01:54]} 22. Re1 {[%clk 0:01:58]}  Qe8 {[%clk 0:01:42]} 23. Rxe7 {[%clk 0:01:55]}  Qxe7 {[%clk 0:01:42]} 24. Qe1 {[%clk 0:01:56]}  Qd8 {[%clk 0:01:42]} 25. Nh4 {[%clk 0:01:53]}  Kh7 {[%clk 0:01:39]} 26. g4 {[%clk 0:01:47]}  fxg4 {[%clk 0:01:29]} 27. Bxg6+ {[%clk 0:01:38]}  Kg8 {[%clk 0:01:26]} 28. f5 {[%clk 0:01:33]}  g3+ {[%clk 0:01:22]} 29. Kg2 {[%clk 0:01:25]}  Ng4 {[%clk 0:00:41]} 30. Bxh5 {[%clk 0:01:15]}  Nf2 {[%clk 0:00:20]} 31. Nf3 {[%clk 0:01:11]}  Bxf5 {[%clk 0:00:20]} 32. Bg4 {[%clk 0:01:07]}  Nxg4 {[%clk 0:00:13]} 33. hxg4 {[%clk 0:01:05]}  Bxg4 {[%clk 0:00:13]} 34. Qxg3 {[%clk 0:01:05]}  Qd7 {[%clk 0:00:10]} 35. Bxh6 {[%clk 0:00:56]}  Bxh6 {[%clk 0:00:09]} 36. Nh2 {[%clk 0:00:55]}  Qe7 {[%clk 0:00:07]} 37. Qxg4+ {[%clk 0:00:54]}  Kh8 {[%clk 0:00:07]} 38. Nf3 {[%clk 0:00:45]}  Bg7 {[%clk 0:00:05]} 39. Qh3+ {[%clk 0:00:43]}  Kg8 {[%clk 0:00:05]} 40. Qe6+ {[%clk 0:00:43]}  Qxe6 {[%clk 0:00:05]} 41. dxe6 {[%clk 0:00:43]}  Kf8 {[%clk 0:00:05]} 42. Nd5 {[%clk 0:00:43]}  Bxb2 {[%clk 0:00:05]} 43. e7+ {[%clk 0:00:41]}  Ke8 {[%clk 0:00:03]} 44. Ng5 {[%clk 0:00:41]}  Be5 {[%clk 0:00:00]} 45. a5 {[%clk 0:00:38]} 1-0

[Event "January 2 Early 2024"]
[Site "https://www.chess.com"]
[Date "2024.01.02"]
[Round "4"]
[White "Dushyant Sharma"]
[Black "Gao, Raymond"]
[Result "1/2-1/2"]
[Board "149"]
[TimeControl "180+1"]
[WhiteFideId "25065130"]
[BlackFideId "2629429"]
[WhiteElo "2526"]
[BlackElo "2335"]
[WhiteTeam "IND"]
[BlackTeam "CAN"]
[WhiteClock "0:00:12"]
[BlackClock "0:00:06"]

1. e4 {[%clk 0:02:56]}  c5 {[%clk 0:02:59]} 2. Nf3 {[%clk 0:02:55]}  Nc6 {[%clk 0:03:00]} 3. d4 {[%clk 0:02:54]}  cxd4 {[%clk 0:03:01]} 4. Nxd4 {[%clk 0:02:55]}  g6 {[%clk 0:03:02]} 5. f4 {[%clk 0:02:54]}  Bg7 {[%clk 0:02:57]} 6. Nf3 {[%clk 0:02:51]}  d6 {[%clk 0:02:49]} 7. Nc3 {[%clk 0:02:50]}  Bxc3+ {[%clk 0:02:42]} 8. bxc3 {[%clk 0:02:41]}  Nf6 {[%clk 0:02:43]} 9. Bd3 {[%clk 0:02:41]}  Bd7 {[%clk 0:02:33]} 10. O-O {[%clk 0:02:41]}  Rc8 {[%clk 0:02:34]} 11. Qe1 {[%clk 0:02:38]}  O-O {[%clk 0:02:30]} 12. Bd2 {[%clk 0:02:32]}  Na5 {[%clk 0:02:21]} 13. Rd1 {[%clk 0:02:15]}  Nc4 {[%clk 0:02:19]} 14. Bc1 {[%clk 0:02:15]}  Qa5 {[%clk 0:02:07]} 15. Qh4 {[%clk 0:02:00]}  Qh5 {[%clk 0:02:04]} 16. Qg3 {[%clk 0:01:55]}  Qg4 {[%clk 0:01:56]} 17. Qf2 {[%clk 0:01:51]}  Qh5 {[%clk 0:01:52]} 18. h3 {[%clk 0:01:48]}  Qc5 {[%clk 0:01:47]} 19. Nd4 {[%clk 0:01:45]}  d5 {[%clk 0:01:20]} 20. e5 {[%clk 0:01:38]}  Ne4 {[%clk 0:01:20]} 21. Bxe4 {[%clk 0:01:38]}  dxe4 {[%clk 0:01:21]} 22. Qh4 {[%clk 0:01:33]}  e3 {[%clk 0:01:17]} 23. Rd3 {[%clk 0:01:24]}  Bf5 {[%clk 0:00:51]} 24. Rxe3 {[%clk 0:00:46]}  Nxe3 {[%clk 0:00:49]} 25. Bxe3 {[%clk 0:00:47]}  Qxc3 {[%clk 0:00:41]} 26. Nxf5 {[%clk 0:00:45]}  gxf5 {[%clk 0:00:42]} 27. Rf3 {[%clk 0:00:45]}  Kh8 {[%clk 0:00:33]} 28. Qxe7 {[%clk 0:00:43]}  Rg8 {[%clk 0:00:18]} 29. Qf6+ {[%clk 0:00:42]}  Rg7 {[%clk 0:00:18]} 30. Kh2 {[%clk 0:00:32]}  Qc6 {[%clk 0:00:10]} 31. Qxc6 {[%clk 0:00:20]}  Rxc6 {[%clk 0:00:09]} 32. Bd4 {[%clk 0:00:21]}  Kg8 {[%clk 0:00:08]} 33. e6 {[%clk 0:00:20]}  fxe6 {[%clk 0:00:07]} 34. Bxg7 {[%clk 0:00:19]}  Kxg7 {[%clk 0:00:07]} 35. Rb3 {[%clk 0:00:19]}  b6 {[%clk 0:00:07]} 36. Ra3 {[%clk 0:00:20]}  a5 {[%clk 0:00:07]} 37. c3 {[%clk 0:00:18]}  Kf6 {[%clk 0:00:05]} 38. Rb3 {[%clk 0:00:18]}  e5 {[%clk 0:00:04]} 39. fxe5+ {[%clk 0:00:18]}  Kxe5 {[%clk 0:00:05]} 40. Kg3 {[%clk 0:00:19]}  a4 {[%clk 0:00:04]} 41. Rb5+ {[%clk 0:00:18]}  Rc5 {[%clk 0:00:03]} 42. Rb4 {[%clk 0:00:07]}  Rxc3+ {[%clk 0:00:02]} 43. Kh4 {[%clk 0:00:07]}  a3 {[%clk 0:00:02]} 44. Rxb6 {[%clk 0:00:07]}  Rc2 {[%clk 0:00:02]} 45. Rb5+ {[%clk 0:00:07]}  Kf6 {[%clk 0:00:02]} 46. g4 {[%clk 0:00:07]}  fxg4 {[%clk 0:00:02]} 47. hxg4 {[%clk 0:00:08]}  Rxa2 {[%clk 0:00:02]} 48. Rb6+ {[%clk 0:00:08]}  Kg7 {[%clk 0:00:03]} 49. Ra6 {[%clk 0:00:08]}  Ra1 {[%clk 0:00:03]} 50. Kg5 {[%clk 0:00:09]}  a2 {[%clk 0:00:03]} 51. Ra7+ {[%clk 0:00:10]}  Kg8 {[%clk 0:00:04]} 52. Ra6 {[%clk 0:00:09]}  Kg7 {[%clk 0:00:04]} 53. Ra7+ {[%clk 0:00:09]}  Kg8 {[%clk 0:00:05]} 54. Ra6 {[%clk 0:00:09]}  Kf7 {[%clk 0:00:05]} 55. Ra8 {[%clk 0:00:09]}  Ke6 {[%clk 0:00:05]} 56. Ra7 {[%clk 0:00:09]}  Kd6 {[%clk 0:00:05]} 57. Ra6+ {[%clk 0:00:09]}  Ke7 {[%clk 0:00:05]} 58. Ra8 {[%clk 0:00:10]}  Ke6 {[%clk 0:00:06]} 59. Ra7 {[%clk 0:00:11]}  Kd6 {[%clk 0:00:06]} 60. Ra3 {[%clk 0:00:11]}  Ke6 {[%clk 0:00:06]} 61. Ra6+ {[%clk 0:00:11]}  Kf7 {[%clk 0:00:06]} 62. Ra7+ {[%clk 0:00:12]}  Ke8 {[%clk 0:00:06]} 63. Ra6 {[%clk 0:00:10]}  Kd7 {[%clk 0:00:06]} 64. Ra5 {[%clk 0:00:11]}  Ke6 {[%clk 0:00:06]} 65. Ra3 {[%clk 0:00:11]}  Kd6 {[%clk 0:00:06]} 66. Ra8 {[%clk 0:00:12]}  Ke6 {[%clk 0:00:06]} 1/2-1/2

[Event "January 2 Early 2024"]
[Site "https://www.chess.com"]
[Date "2024.01.02"]
[Round "4"]
[White "Rietze, Clemens, Dr."]
[Black "Dahl, Trygve"]
[Result "1-0"]
[Board "152"]
[TimeControl "180+1"]
[WhiteFideId "24620351"]
[BlackFideId "1513427"]
[WhiteElo "2516"]
[BlackElo "2331"]
[WhiteTeam "GER"]
[BlackTeam "NOR"]
[WhiteClock "0:00:13"]
[BlackClock "0:00:06"]

1. d4 {[%clk 0:03:00]}  Nf6 {[%clk 0:02:58]} 2. c4 {[%clk 0:03:00]}  e6 {[%clk 0:02:57]} 3. Nf3 {[%clk 0:02:59]}  Bb4+ {[%clk 0:02:56]} 4. Bd2 {[%clk 0:02:58]}  Qe7 {[%clk 0:02:55]} 5. Nc3 {[%clk 0:02:58]}  Bxc3 {[%clk 0:02:54]} 6. Bxc3 {[%clk 0:02:58]}  Ne4 {[%clk 0:02:55]} 7. Qc2 {[%clk 0:02:55]}  Nxc3 {[%clk 0:02:54]} 8. Qxc3 {[%clk 0:02:56]}  b6 {[%clk 0:02:54]} 9. e4 {[%clk 0:02:46]}  Bb7 {[%clk 0:02:52]} 10. Bd3 {[%clk 0:02:46]}  d6 {[%clk 0:02:51]} 11. O-O {[%clk 0:02:46]}  Nd7 {[%clk 0:02:50]} 12. Rfe1 {[%clk 0:02:45]}  e5 {[%clk 0:02:50]} 13. Rad1 {[%clk 0:02:43]}  O-O {[%clk 0:02:49]} 14. h3 {[%clk 0:02:38]}  Rfe8 {[%clk 0:02:42]} 15. b4 {[%clk 0:02:33]}  a5 {[%clk 0:02:40]} 16. a3 {[%clk 0:02:33]}  Qf6 {[%clk 0:02:28]} 17. Bc2 {[%clk 0:02:12]}  exd4 {[%clk 0:02:09]} 18. Nxd4 {[%clk 0:02:09]}  Ne5 {[%clk 0:02:09]} 19. Nb5 {[%clk 0:02:00]}  Re7 {[%clk 0:01:57]} 20. c5 {[%clk 0:01:57]}  dxc5 {[%clk 0:01:50]} 21. bxc5 {[%clk 0:01:56]}  Qc6 {[%clk 0:01:28]} 22. f4 {[%clk 0:00:51]}  Nd7 {[%clk 0:00:55]} 23. Nd4 {[%clk 0:00:38]}  Qxc5 {[%clk 0:00:55]} 24. Qg3 {[%clk 0:00:35]}  Nf6 {[%clk 0:00:48]} 25. e5 {[%clk 0:00:26]}  Nh5 {[%clk 0:00:41]} 26. Qe3 {[%clk 0:00:22]}  Rd7 {[%clk 0:00:29]} 27. Bb3 {[%clk 0:00:19]}  Rad8 {[%clk 0:00:27]} 28. e6 {[%clk 0:00:19]}  Rxd4 {[%clk 0:00:24]} 29. exf7+ {[%clk 0:00:19]}  Kh8 {[%clk 0:00:15]} 30. Qe8+ {[%clk 0:00:16]}  Qf8 {[%clk 0:00:12]} 31. Rxd4 {[%clk 0:00:13]}  Nf6 {[%clk 0:00:06]} 1-0